bitfinex/quotes_BTCUSD_20240719
["timestamp","ask_amount","ask_price","bid_price","bid_amount"]
[1721403940336,0.014,65761.0,65760.0,0.388113]
[1721403940542,0.01872567,65761.0,65760.0,0.388113]
[1721403940996,0.00472567,65761.0,65760.0,0.387113]
[1721403941436,0.50822053,65781.0,65762.0,0.152062]
[1721403941650,0.50822053,65781.0,65760.0,0.691249]
[1721403941651,0.1687366,65780.0,65774.0,0.0651]
[1721403941864,0.00472773,65779.0,65775.0,0.0829]
[1721403942093,0.15438174,65778.0,65775.0,0.0829]
[1721403942299,0.00752173,65777.0,65775.0,0.0779]
[1721403942505,0.00472773,65776.0,65775.0,0.0779]
[1721403942964,0.523,65776.0,65775.0,0.0779]
[1721403943172,0.02772773,65776.0,65775.0,0.0779]
[1721403943592,0.00472773,65776.0,65775.0,0.0779]
[1721403943801,0.00472773,65776.0,65774.0,0.07717479]
[1721403944014,0.002794,65785.0,65783.0,0.152013]
[1721403944243,0.002794,65785.0,65784.0,0.3063]
[1721403944244,0.00971062,65785.0,65784.0,0.3063]
[1721403944457,0.01443642,65785.0,65784.0,0.3063]
[1721403944672,0.0047258,65785.0,65784.0,0.3063]
[1721403944881,0.0047258,65788.0,65784.0,0.3063]
[1721403945090,0.002,65789.0,65786.0,0.304016]
[1721403945091,0.0047258,65787.0,65786.0,0.304016]
[1721403945350,0.002,65789.0,65786.0,0.304016]
[1721403945351,0.002,65789.0,65788.0,0.152003]
[1721403945567,0.002,65789.0,65788.0,0.216703]
[1721403946220,0.002,65789.0,65788.0,0.0647]
[1721403946437,0.002,65789.0,65758.0,0.01826227]
[1721403946438,0.053,65787.0,65782.0,0.0649]
[1721403946646,0.053,65787.0,65770.0,0.242]
[1721403946647,0.5,65781.0,65776.0,0.0649]
[1721403946870,0.152032,65776.0,65771.0,0.0649]
[1721403947092,0.55,65781.0,65771.0,0.0649]
[1721403947093,0.16190173,65775.0,65771.0,0.0649]
[1721403947298,0.00472599,65774.0,65771.0,0.0649]
[1721403947504,0.17738174,65773.0,65771.0,0.0649]
[1721403947721,0.00472599,65772.0,65771.0,0.0649]
[1721403947937,0.00472599,65772.0,65771.0,0.216942]
[1721403948168,0.014,65777.0,65773.0,0.152037]
[1721403948169,0.00472485,65776.0,65773.0,0.152037]
[1721403948384,0.707,65788.0,65776.0,0.242]
[1721403948385,0.002794,65786.0,65776.0,0.242]
[1721403948599,0.707,65788.0,65782.0,0.242]
[1721403948600,0.01459619,65785.0,65782.0,0.242]
[1721403948814,0.004,65789.0,65783.0,0.1421]
[1721403948815,0.00751827,65784.0,65783.0,0.1421]
[1721403949027,0.00472427,65784.0,65783.0,0.536114]
[1721403949241,0.004,65789.0,65784.0,0.152011]
[1721403949242,0.00472533,65787.0,65784.0,0.152011]
[1721403949464,0.00472533,65787.0,65783.0,0.3841]
[1721403949465,0.00472534,65786.0,65783.0,0.3841]
[1721403949650,0.002794,65785.0,65783.0,0.3841]
[1721403949889,0.00472534,65784.0,65783.0,0.3841]
[1721403950100,0.01272534,65784.0,65783.0,0.3841]
[1721403950765,0.01272534,65784.0,65777.0,0.0628]
[1721403950766,0.5,65783.0,65777.0,0.0628]
[1721403950973,0.5,65783.0,65772.0,0.0628]
[1721403950974,0.20435796,65782.0,65772.0,0.0628]
[1721403951180,0.07577022,65781.0,65772.0,0.0628]
[1721403951401,0.04530896,65778.0,65772.0,0.0628]
[1721403951611,0.152024,65779.0,65772.0,0.0628]
[1721403951612,0.382238,65777.0,65772.0,0.0628]
[1721403951837,0.0157243,65776.0,65773.0,0.001]
[1721403952047,0.152035,65774.0,65773.0,0.001]
[1721403952265,0.0047243,65774.0,65773.0,0.001]
[1721403952483,0.0047243,65774.0,65770.0,0.0787]
[1721403952484,0.18210604,65774.0,65770.0,0.0787]
[1721403952690,0.0277243,65773.0,65772.0,0.001]
[1721403953575,0.0277243,65773.0,65770.0,0.0777]
[1721403953790,0.0075183,65772.0,65770.0,0.0777]
[1721403953998,0.0047243,65771.0,65770.0,0.0777]
[1721403954219,0.005,65774.0,65770.0,0.0777]
[1721403954220,0.0047243,65773.0,65770.0,0.0777]
[1721403954430,0.00751843,65772.0,65770.0,0.0777]
[1721403954645,0.00472443,65771.0,65770.0,0.0777]
[1721403955078,0.00472456,65773.0,65771.0,0.0652]
[1721403955300,0.0047246,65772.0,65771.0,0.0652]
[1721403955566,0.01,65773.0,65772.0,0.21214]
[1721403955778,0.01,65773.0,65772.0,0.81862]
[1721403955986,0.01,65773.0,65772.0,1.1227]
[1721403956193,0.01,65773.0,65772.0,0.81862]
[1721403956404,0.00968342,65777.0,65772.0,0.3625]
[1721403956613,0.00751913,65776.0,65773.0,0.0764]
[1721403956825,0.002794,65776.0,65773.0,0.0764]
[1721403957038,0.00472509,65775.0,65773.0,0.228436]
[1721403957240,0.002794,65782.0,65775.0,0.152032]
[1721403957452,0.00472509,65781.0,65775.0,0.152032]
[1721403957664,0.025794,65783.0,65775.0,0.152032]
[1721403957665,0.00751911,65780.0,65775.0,0.152032]
[1721403957868,0.00472511,65779.0,65775.0,0.152032]
[1721403958086,0.00751911,65778.0,65775.0,0.152032]
[1721403958294,0.00472511,65777.0,65775.0,0.152032]
[1721403958709,0.00472511,65776.0,65775.0,0.152032]
[1721403958925,0.00472511,65781.0,65773.0,0.0764]
[1721403959144,0.523,65783.0,65773.0,0.0764]
[1721403959145,0.03051911,65780.0,65773.0,0.0764]
[1721403959359,0.00472511,65779.0,65773.0,0.0764]
[1721403959576,0.002794,65778.0,65773.0,0.0764]
[1721403959793,0.00472511,65777.0,65775.0,0.001]
[1721403960012,0.025794,65776.0,65775.0,0.001]
[1721403960220,0.18210685,65776.0,65775.0,0.001]
[1721403960441,0.18490085,65776.0,65775.0,0.001]
[1721403960698,0.18210614,65776.0,65775.0,0.001]
[1721403961124,0.18490014,65776.0,65775.0,0.001]
[1721403961551,0.23023007,65776.0,65775.0,0.001]
[1721403961770,0.18490014,65776.0,65775.0,0.001]
[1721403962247,0.18490014,65776.0,65772.0,0.0601]
[1721403962248,0.5,65773.0,65772.0,0.0601]
[1721403962460,0.5277244,65773.0,65772.0,0.0601]
[1721403963335,0.5277244,65773.0,65767.0,0.0782]
[1721403963336,0.90207888,65773.0,65767.0,0.1442]
[1721403963558,0.04528624,65768.0,65767.0,0.1442]
[1721403963779,0.00471929,65768.0,65767.0,0.1442]
[1721403964201,0.00471929,65768.0,65767.0,0.296249]
[1721403964633,0.00471929,65768.0,65766.0,0.37957479]
[1721403964634,0.002,65773.0,65772.0,0.30114]
[1721403964848,0.00671991,65773.0,65772.0,0.60522]
[1721403965055,0.00671991,65773.0,65772.0,1.42858782]
[1721403965056,0.002,65773.0,65772.0,1.42858782]
[1721403965267,0.09057462,65788.0,65772.0,1.42858782]
[1721403965268,0.002794,65784.0,65783.0,0.152014]
[1721403965488,0.04528624,65790.0,65783.0,0.910458]
[1721403965489,0.00751482,65789.0,65783.0,0.910458]
[1721403965702,0.00472082,65788.0,65783.0,0.606429]
[1721403965943,0.00472087,65788.0,65783.0,0.606429]
[1721403966153,0.00472087,65787.0,65786.0,0.152006]
[1721403966368,0.00472087,65789.0,65784.0,0.1491]
[1721403966584,0.002794,65788.0,65784.0,0.1491]
[1721403966800,0.00472087,65787.0,65784.0,0.1491]
[1721403967012,0.04809938,65786.0,65783.0,0.001]
[1721403967250,0.22706068,65785.0,65783.0,0.001]
[1721403967454,0.03995158,65784.0,65779.0,0.1491]
[1721403967663,0.5,65780.0,65779.0,0.1491]
[1721403967930,0.75949667,65780.0,65773.0,0.0831]
[1721403968171,0.0452726,65775.0,65773.0,0.0831]
[1721403968416,0.0452726,65775.0,65770.0,0.066]
[1721403968417,0.25889013,65774.0,65770.0,0.066]
[1721403968655,0.04526127,65771.0,65770.0,0.066]
[1721403968903,0.00471739,65771.0,65770.0,0.066]
[1721403969385,0.00471739,65774.0,65770.0,0.066]
[1721403969638,0.04526264,65772.0,65770.0,0.066]
[1721403969896,0.00471739,65771.0,65770.0,0.066]
[1721403970392,0.00471739,65771.0,65770.0,0.0661]
[1721403970393,0.18021846,65771.0,65770.0,0.0661]
[1721403970644,0.18021846,65771.0,65758.0,0.7924]
[1721403970645,0.15205,65768.0,65759.0,0.0661]
[1721403970898,0.23239438,65771.0,65759.0,0.0661]
[1721403970899,0.04525596,65762.0,65759.0,0.0661]
[1721403971147,0.04525596,65762.0,65758.0,0.0771]
[1721403971148,0.01415136,65761.0,65758.0,0.0771]
[1721403971396,0.12475135,65761.0,65758.0,0.0771]
[1721403971639,0.12475135,65761.0,65754.0,0.0661]
[1721403971640,0.45383468,65761.0,65754.0,0.0661]
[1721403971922,0.4311944,65761.0,65754.0,0.0661]
[1721403972138,0.99274477,65761.0,65748.0,0.4737]
[1721403972347,0.99274477,65761.0,65747.0,0.0661]
[1721403972348,1.06653979,65761.0,65747.0,0.0661]
[1721403972554,0.5,65750.0,65745.0,0.0771]
[1721403972760,0.20432485,65749.0,65742.0,0.0661]
[1721403972979,0.20432485,65749.0,65739.0,0.0771]
[1721403972980,0.34942524,65747.0,65739.0,0.0771]
[1721403973200,0.04522724,65744.0,65739.0,0.0771]
[1721403973411,0.00471587,65743.0,65739.0,0.0771]
[1721403973622,0.023,65742.0,65739.0,0.0771]
[1721403973845,0.00471587,65741.0,65739.0,0.0771]
[1721403975117,0.00471695,65740.0,65739.0,0.0771]
[1721403975341,0.00471636,65740.0,65739.0,0.0771]
[1721403975799,0.001,65741.0,65739.0,0.3795]
[1721403977730,0.023,65747.0,65739.0,0.3795]
[1721403977938,0.00471578,65746.0,65739.0,0.3795]
[1721403978169,0.023,65745.0,65739.0,0.3795]
[1721403978384,0.00471578,65744.0,65741.0,0.07717479]
[1721403978626,0.0098381,65750.0,65749.0,0.45628]
[1721403978845,0.11291478,65765.0,65749.0,0.45628]
[1721403978846,0.46304871,65764.0,65759.0,0.1423]
[1721403979070,0.00471708,65763.0,65759.0,0.1423]
[1721403979284,0.5,65773.0,65759.0,0.1423]
[1721403979285,0.04517592,65776.0,65759.0,0.1423]
[1721403979502,0.00949318,65768.0,65759.0,0.1423]
[1721403979722,0.152043,65771.0,65759.0,0.1423]
[1721403979723,0.5,65764.0,65759.0,0.1423]
[1721403979920,0.16189306,65763.0,65759.0,0.1423]
[1721403980176,0.16189306,65763.0,65750.0,0.3024]
[1721403980177,0.152066,65761.0,65751.0,0.1453]
[1721403980395,0.00471732,65762.0,65751.0,0.1453]
[1721403980396,0.16189306,65760.0,65751.0,0.1453]
[1721403980622,0.02771732,65759.0,65751.0,0.1453]
[1721403980839,0.15909906,65758.0,65751.0,0.1453]
[1721403981054,0.04639835,65757.0,65751.0,0.1453]
[1721403981330,0.5,65755.0,65751.0,0.1453]
[1721403981529,0.5,65755.0,65749.0,0.4737]
[1721403981530,0.52771667,65754.0,65749.0,0.4737]
[1721403981735,0.00471667,65753.0,65749.0,0.4737]
[1721403981941,0.023,65752.0,65745.0,0.06]
[1721403982147,0.00471667,65751.0,65745.0,0.06]
[1721403983235,0.023,65750.0,65745.0,0.06]
[1721403983413,0.00471667,65749.0,65745.0,0.06]
[1721403983870,0.5,65746.0,65745.0,0.06]
[1721403984084,0.50471667,65746.0,65745.0,0.06]
[1721403984299,0.523,65746.0,65745.0,0.06]
[1721403984529,0.523,65746.0,65745.0,0.061]
[1721403984530,0.52771644,65746.0,65745.0,0.061]
[1721403984965,0.52771644,65746.0,65745.0,0.06]
[1721403985420,0.52771644,65746.0,65745.0,0.001]
[1721403985421,1.14639918,65746.0,65745.0,0.001]
[1721403985836,1.50560018,65746.0,65745.0,0.001]
[1721403986039,1.15139918,65746.0,65745.0,0.001]
[1721403986711,0.84719818,65746.0,65745.0,0.001]
[1721403987566,0.19509745,65746.0,65745.0,0.001]
[1721403988184,0.69509745,65746.0,65745.0,0.001]
[1721403988400,0.84719745,65746.0,65745.0,0.001]
[1721403988620,0.19509745,65746.0,65745.0,0.001]
[1721403988867,0.19491445,65746.0,65745.0,0.001]
[1721403989081,0.69491445,65746.0,65745.0,0.001]
[1721403989727,0.19491445,65746.0,65745.0,0.001]
[1721403990206,0.20446649,65746.0,65745.0,0.001]
[1721403990615,0.19975078,65746.0,65745.0,0.001]
[1721403990824,0.20446734,65746.0,65745.0,0.001]
[1721403991241,1.06496934,65746.0,65745.0,0.001]
[1721403991873,1.01496934,65746.0,65745.0,0.001]
[1721403992320,0.20446734,65746.0,65745.0,0.001]
[1721403993685,0.85656734,65746.0,65745.0,0.001]
[1721403993971,0.8565668,65746.0,65745.0,0.001]
[1721403994220,1.5649687,65746.0,65745.0,0.001]
[1721403995423,1.5149687,65746.0,65745.0,0.001]
[1721403995620,1.2107677,65746.0,65745.0,0.001]
[1721403996105,0.8565667,65746.0,65745.0,0.001]
[1721403996320,0.2044667,65746.0,65745.0,0.001]
[1721403996797,0.2044667,65746.0,65745.0,0.063]
[1721403996798,0.02726796,65746.0,65745.0,0.063]
[1721403997022,0.02726855,65746.0,65745.0,0.1419]
[1721403998174,0.05026855,65746.0,65745.0,0.1419]
[1721403998878,0.90675029,65746.0,65745.0,0.001]
[1721403999126,1.21095129,65746.0,65745.0,0.001]
[1721403999357,1.16095129,65746.0,65745.0,0.001]
[1721403999579,1.23063776,65746.0,65745.0,0.001]
[1721403999812,1.24006838,65746.0,65745.0,0.001]
[1721404000090,1.59426907,65746.0,65745.0,0.001]
[1721404000300,1.54426907,65746.0,65745.0,0.001]
[1721404001372,1.59426907,65746.0,65745.0,0.001]
[1721404001900,1.54426907,65746.0,65745.0,0.001]
[1721404002373,1.04426907,65746.0,65745.0,0.001]
[1721404002613,1.54426907,65746.0,65745.0,0.001]
[1721404002829,1.24006807,65746.0,65745.0,0.001]
[1721404003065,1.23064204,65746.0,65745.0,0.001]
[1721404003296,1.24006959,65746.0,65745.0,0.001]
[1721404003731,0.76387058,65746.0,65745.0,0.001]
[1721404004217,0.40966958,65746.0,65745.0,0.001]
[1721404004486,0.23376859,65746.0,65745.0,0.001]
[1721404004744,0.25756873,65746.0,65745.0,0.001]
[1721404004983,0.02726584,65746.0,65745.0,0.1444]
[1721404005199,0.02726584,65746.0,65745.0,0.145324]
[1721404005418,0.02810584,65746.0,65745.0,0.145324]
[1721404006062,0.04639204,65746.0,65745.0,0.145324]
[1721404006276,0.05110498,65746.0,65745.0,0.145324]
[1721404006489,0.02810498,65746.0,65745.0,0.297426]
[1721404006981,0.02810498,65746.0,65745.0,0.145324]
[1721404007398,0.05110498,65746.0,65745.0,0.145324]
[1721404007607,0.20548672,65746.0,65745.0,0.145324]
[1721404008673,0.23477972,65746.0,65745.0,0.001924]
[1721404008879,0.25857887,65746.0,65745.0,0.001924]
[1721404009098,0.24914713,65746.0,65745.0,0.001924]
[1721404009306,0.25857823,65746.0,65745.0,0.001924]
[1721404009546,0.22457293,65746.0,65745.0,0.001924]
[1721404009754,1.11907304,65746.0,65745.0,0.001924]
[1721404009965,0.71487204,65746.0,65745.0,0.001924]
[1721404010178,0.25857104,65746.0,65745.0,0.001924]
[1721404010608,0.23477189,65746.0,65745.0,0.062324]
[1721404011024,0.08039015,65746.0,65745.0,0.062324]
[1721404011228,0.08039105,65746.0,65745.0,0.062324]
[1721404011654,0.08843017,65746.0,65745.0,0.062324]
[1721404012113,0.07096019,65746.0,65745.0,0.062324]
[1721404012323,0.05110702,65746.0,65745.0,0.062324]
[1721404012534,0.08028908,65746.0,65745.0,0.062324]
[1721404012979,0.07086232,65746.0,65745.0,0.062324]
[1721404013252,0.05110702,65746.0,65745.0,0.062324]
[1721404013460,0.02810702,65746.0,65745.0,0.062324]
[1721404013914,0.01855498,65746.0,65745.0,0.901536]
[1721404014134,0.01855405,65746.0,65745.0,1.205741]
[1721404014339,0.01384,65746.0,65745.0,1.33203601]
[1721404014564,0.01384,65746.0,65745.0,1.205741]
[1721404014774,0.01384,65746.0,65745.0,0.901536]
[1721404015419,0.01055485,65746.0,65745.0,0.900536]
[1721404015624,0.00684,65746.0,65745.0,0.906536]
[1721404016263,0.00584,65746.0,65745.0,0.900536]
[1721404016471,0.00584,65746.0,65745.0,0.140024]
[1721404016472,0.00555481,65746.0,65745.0,0.140024]
[1721404016679,0.00655481,65746.0,65745.0,0.140024]
[1721404016884,0.00655481,65746.0,65745.0,0.142024]
[1721404017331,0.00755481,65746.0,65745.0,0.598331]
[1721404017535,0.00084,65746.0,65745.0,1.306741]
[1721404018401,0.00084,65746.0,65745.0,0.140024]
[1721404018607,0.00084,65746.0,65745.0,0.146024]
[1721404018812,0.00655481,65746.0,65745.0,0.146024]
[1721404019029,0.18393655,65746.0,65745.0,0.006924]
[1721404019237,0.25092417,65746.0,65745.0,0.000924]
[1721404019699,0.25092417,65746.0,65745.0,0.005924]
[1721404019700,0.18393655,65746.0,65745.0,0.005924]
[1721404020088,0.19236446,65746.0,65745.0,0.000924]
[1721404020333,0.20236446,65746.0,65745.0,0.000924]
[1721404020550,0.19293655,65746.0,65745.0,0.000924]
[1721404021030,0.25619049,65746.0,65745.0,0.000924]
[1721404021247,0.26090462,65746.0,65745.0,0.000924]
[1721404021465,0.29298813,65746.0,65745.0,0.000924]
[1721404021670,0.30498813,65746.0,65745.0,0.001924]
[1721404021873,0.28233138,65746.0,65745.0,0.001924]
[1721404022098,0.27290413,65746.0,65745.0,0.001924]
[1721404022588,0.30499108,65746.0,65745.0,0.001924]
[1721404022802,0.20493587,65746.0,65745.0,0.001924]
[1721404023234,0.21436616,65746.0,65745.0,0.001924]
[1721404023446,0.20493587,65746.0,65745.0,0.001924]
[1721404023664,0.02755413,65746.0,65745.0,0.001924]
[1721404023923,0.02284,65746.0,65745.0,0.92228588]
[1721404024133,0.04532331,65762.0,65761.0,0.152065]
[1721404024355,0.01436971,65762.0,65761.0,0.758596]
[1721404024572,0.00471623,65762.0,65761.0,1.062727]
[1721404024785,0.00960892,65768.0,65767.0,0.152051]
[1721404025012,0.01432547,65768.0,65767.0,0.6713833]
[1721404025242,0.04532331,65779.0,65772.0,0.152038]
[1721404025450,0.05977342,65778.0,65773.0,0.152037]
[1721404025670,0.05004051,65777.0,65773.0,0.152037]
[1721404025905,0.0047172,65776.0,65771.0,0.456124]
[1721404026109,0.0047172,65776.0,65772.0,0.152039]
[1721404026535,0.05732331,65779.0,65775.0,0.07717479]
[1721404026746,0.012,65779.0,65773.0,0.304075]
[1721404026962,0.012,65779.0,65775.0,0.152032]
[1721404026963,0.005,65777.0,65775.0,0.152032]
[1721404027202,0.00471679,65776.0,65773.0,0.304075]
[1721404027433,0.00471677,65776.0,65775.0,0.22920779]
[1721404027651,0.012,65779.0,65775.0,0.22920779]
[1721404027652,0.012,65779.0,65778.0,0.152026]
[1721404027885,0.012,65779.0,65778.0,0.760132]
[1721404028102,0.11315829,65794.0,65778.0,0.6282998]
[1721404028103,0.04526331,65794.0,65778.0,0.6282998]
[1721404028308,0.00751176,65793.0,65792.0,0.290494]
[1721404028540,0.53094368,65802.0,65792.0,0.290494]
[1721404028541,0.002794,65794.0,65793.0,0.455974]
[1721404028756,0.06789497,65804.0,65793.0,0.68355779]
[1721404028757,0.060883,65804.0,65793.0,0.68355779]
[1721404028972,0.5,65807.0,65799.0,0.151976]
[1721404029182,0.00751187,65806.0,65799.0,0.151976]
[1721404029394,0.004719,65805.0,65793.0,0.76576057]
[1721404029614,0.15910074,65805.0,65794.0,0.151988]
[1721404029827,0.15910074,65805.0,65793.0,0.3024]
[1721404029828,0.004719,65804.0,65793.0,0.3024]
[1721404030063,0.004719,65804.0,65793.0,0.454391]
[1721404030064,0.15438174,65803.0,65793.0,0.454391]
[1721404030692,0.013,65805.0,65799.0,0.001]
[1721404030900,0.013,65805.0,65799.0,0.152976]
[1721404031117,0.013,65805.0,65799.0,0.151976]
[1721404031344,0.013,65805.0,65797.0,0.151981]
[1721404031562,0.0118443,65809.0,65800.0,0.07717479]
[1721404031776,0.0118443,65809.0,65802.0,0.151969]
[1721404032246,0.0118443,65809.0,65801.0,0.3024]
[1721404032450,0.0118443,65809.0,65803.0,0.151968]
[1721404032671,0.0118443,65809.0,65794.0,0.3024]
[1721404032892,0.303967,65797.0,65787.0,0.0622]
[1721404033109,0.15438174,65796.0,65793.0,0.001]
[1721404033329,0.002794,65795.0,65793.0,0.001]
[1721404033553,0.30637074,65794.0,65793.0,0.001]
[1721404033761,0.67656621,65794.0,65793.0,0.001]
[1721404033992,0.303993,65791.0,65784.0,0.0771]
[1721404034200,0.303993,65791.0,65780.0,0.0622]
[1721404034201,0.152004,65788.0,65780.0,0.0622]
[1721404034407,0.18017574,65790.0,65780.0,0.0622]
[1721404034408,0.15717574,65787.0,65780.0,0.0622]
[1721404034619,0.023,65786.0,65780.0,0.0622]
[1721404034827,0.15717574,65785.0,65780.0,0.0622]
[1721404035040,0.023,65784.0,65780.0,0.0622]
[1721404035257,0.002794,65783.0,65780.0,0.0622]
[1721404035472,0.15438174,65782.0,65778.0,0.4737]
[1721404035696,0.15438174,65782.0,65765.0,0.3024]
[1721404035697,0.5,65776.0,65767.0,0.0804]
[1721404035911,0.15717574,65775.0,65767.0,0.0804]
[1721404036123,0.23017574,65775.0,65767.0,0.0804]
[1721404036334,0.18017574,65775.0,65767.0,0.0804]
[1721404036560,0.025794,65775.0,65767.0,0.0804]
[1721404037427,0.15438174,65774.0,65765.0,0.3024]
[1721404037637,0.025794,65773.0,65760.0,0.0616]
[1721404037860,0.30642174,65772.0,65760.0,0.0616]
[1721404038078,0.025794,65771.0,65760.0,0.0616]
[1721404038289,0.15438174,65770.0,65760.0,0.0616]
[1721404038533,0.025794,65769.0,65760.0,0.0616]
[1721404038744,0.18017574,65769.0,65760.0,0.0616]
[1721404039167,0.002794,65769.0,65766.0,0.152053]
[1721404039382,0.028794,65774.0,65764.0,0.152058]
[1721404039567,0.5,65772.0,65764.0,0.152058]
[1721404039802,0.002794,65771.0,65764.0,0.152058]
[1721404040219,0.002794,65771.0,65766.0,0.07717479]
[1721404040460,0.002,65774.0,65773.0,0.456114]
[1721404040885,0.00084,65785.0,65774.0,0.152034]
[1721404041129,0.002794,65784.0,65775.0,0.454433]
[1721404041547,0.502794,65784.0,65775.0,0.454433]
[1721404041756,0.002794,65784.0,65783.0,0.07717479]
[1721404041961,0.00084,65785.0,65784.0,0.152012]
[1721404042170,0.00084,65785.0,65784.0,0.456037]
[1721404042407,0.00084,65785.0,65784.0,0.152012]
[1721404042628,0.00084,65785.0,65782.0,0.3024]
[1721404043047,0.00084,65785.0,65779.0,0.152023]
[1721404043271,0.00084,65785.0,65781.0,0.152018]
[1721404043497,0.00184,65785.0,65781.0,0.152018]
[1721404043766,0.00184,65785.0,65778.0,0.292424]
[1721404043985,0.00084,65785.0,65778.0,0.292424]
[1721404044201,0.00084,65785.0,65778.0,0.1404]
[1721404044420,0.00084,65785.0,65779.0,0.001]
[1721404044421,0.00384,65785.0,65779.0,0.001]
[1721404044652,0.00384,65785.0,65779.0,0.153023]
[1721404044887,0.00384,65785.0,65779.0,0.001]
[1721404045624,0.00084,65785.0,65778.0,0.1404]
[1721404045850,0.00084,65785.0,65778.0,0.292426]
[1721404046082,0.00184,65785.0,65779.0,0.152023]
[1721404046535,0.00684,65785.0,65781.0,0.001]
[1721404046741,0.00684,65785.0,65779.0,0.152023]
[1721404046742,0.00784,65785.0,65779.0,0.152023]
[1721404046948,0.00784,65785.0,65778.0,0.1404]
[1721404047156,0.17738174,65784.0,65778.0,0.0751]
[1721404047367,0.18017574,65784.0,65778.0,0.0751]
[1721404049093,0.18017574,65784.0,65773.0,0.066]
[1721404049316,0.5,65780.0,65773.0,0.066]
[1721404049526,0.18490431,65779.0,65772.0,0.0751]
[1721404049742,0.18017574,65779.0,65768.0,0.0614]
[1721404049957,0.18017574,65779.0,65766.0,0.0752]
[1721404049958,0.152034,65775.0,65766.0,0.0752]
[1721404050182,0.33694121,65774.0,65766.0,0.0752]
[1721404050388,0.00472947,65773.0,65766.0,0.0752]
[1721404050633,0.025794,65772.0,65766.0,0.0752]
[1721404052005,0.00472977,65771.0,65766.0,0.0752]
[1721404052207,0.025794,65770.0,65766.0,0.0752]
[1721404052466,0.00472977,65769.0,65766.0,0.0752]
[1721404053124,0.023,65770.0,65766.0,0.0752]
[1721404053351,0.00472966,65769.0,65766.0,0.001]
[1721404053562,0.00472966,65769.0,65763.0,0.0663]
[1721404053563,0.025794,65768.0,65763.0,0.0663]
[1721404053765,0.00472966,65767.0,65766.0,0.001]
[1721404053987,0.023,65767.0,65766.0,0.004]
[1721404054196,0.0277313,65767.0,65766.0,0.004]
[1721404054409,0.0277313,65767.0,65766.0,0.005]
[1721404054615,0.0277313,65767.0,65766.0,0.002]
[1721404055881,0.0277313,65767.0,65763.0,0.0663]
[1721404056091,0.024,65767.0,65766.0,0.003]
[1721404056297,0.00573393,65767.0,65766.0,0.003]
[1721404056519,0.02873393,65767.0,65766.0,0.003]
[1721404056936,0.02773393,65767.0,65766.0,0.005]
[1721404057160,0.02773402,65767.0,65766.0,0.005]
[1721404057384,0.02873402,65767.0,65766.0,0.005]
[1721404057879,0.33516676,65767.0,65766.0,0.005]
[1721404058123,0.73926976,65767.0,65766.0,0.005]
[1721404058349,1.07253571,65767.0,65766.0,0.005]
[1721404058593,1.4004333,65767.0,65766.0,0.005]
[1721404058808,1.49916646,65767.0,65766.0,0.005]
[1721404059048,1.4322333,65767.0,65766.0,0.004]
[1721404059265,1.4312333,65767.0,65766.0,0.004]
[1721404059530,1.60316646,65767.0,65766.0,0.005]
[1721404059744,1.7096333,65767.0,65766.0,0.005]
[1721404059964,1.79921085,65767.0,65766.0,0.001]
[1721404060198,1.81321085,65767.0,65766.0,0.001]
[1721404060415,1.72258815,65767.0,65766.0,0.001]
[1721404060632,1.72258815,65767.0,65749.0,0.4737]
[1721404060633,0.5,65750.0,65749.0,0.4737]
[1721404060869,0.5,65748.0,65745.0,0.000924]
[1721404061086,0.00473331,65747.0,65745.0,0.000924]
[1721404061300,0.02773331,65747.0,65745.0,0.000924]
[1721404061510,0.00473331,65746.0,65745.0,0.000924]
[1721404061740,0.023,65747.0,65745.0,0.05293648]
[1721404061970,0.5,65750.0,65745.0,0.303324]
[1721404062180,0.5,65750.0,65746.0,0.1521]
[1721404062389,0.5,65750.0,65745.0,0.303324]
[1721404062390,0.0047337,65749.0,65745.0,0.303324]
[1721404062598,0.0047337,65749.0,65745.0,0.000924]
[1721404062809,0.023,65748.0,65745.0,0.000924]
[1721404063021,0.511,65750.0,65745.0,0.000924]
[1721404063022,0.011,65750.0,65746.0,0.07717479]
[1721404063229,0.011,65750.0,65746.0,0.22927279]
[1721404063436,0.015,65750.0,65746.0,0.22927279]
[1721404063850,0.152065,65761.0,65746.0,0.22927279]
[1721404064065,0.5,65758.0,65746.0,0.22927279]
[1721404064279,0.007,65747.0,65746.0,0.22927279]
[1721404065316,0.007,65747.0,65746.0,0.152098]
[1721404065555,0.007,65747.0,65745.0,0.608526]
[1721404065556,0.5,65752.0,65745.0,0.304324]
[1721404065763,0.00473331,65751.0,65745.0,0.304324]
[1721404065968,0.011,65750.0,65745.0,0.304324]
[1721404066182,0.15911505,65749.0,65745.0,0.000924]
[1721404066392,0.02773331,65748.0,65746.0,0.001]
[1721404066639,0.003,65747.0,65746.0,0.23027479]
[1721404066866,0.015,65750.0,65746.0,0.23027479]
[1721404066867,0.004,65750.0,65749.0,0.760467]
[1721404067069,0.002794,65774.0,65759.0,0.1399]
[1721404067281,0.5,65770.0,65760.0,0.3024]
[1721404067494,0.16190761,65769.0,65760.0,0.454465]
[1721404067701,0.00473187,65768.0,65760.0,0.454465]
[1721404067926,0.5,65762.0,65760.0,0.454465]
[1721404068134,0.00473187,65761.0,65760.0,0.454465]
[1721404068344,0.00473187,65767.0,65760.0,0.3024]
[1721404068575,0.02773104,65766.0,65762.0,0.152062]
[1721404068781,0.00473104,65765.0,65760.0,0.454465]
[1721404068992,0.00473104,65765.0,65764.0,0.456175]
[1721404069215,0.00473104,65773.0,65760.0,0.606535]
[1721404069431,0.66190678,65772.0,65762.0,0.152063]
[1721404069637,0.00473157,65771.0,65762.0,0.152063]
[1721404069844,0.002794,65770.0,65762.0,0.152063]